bitfinex-derivatives/quotes_ETHF0:USTF0_20250926
["timestamp","ask_amount","ask_price","bid_price","bid_amount"]
[1758899448839,0.37709101,3939.9,3939.8,0.267]
[1758899449250,0.48402157,3939.9,3939.8,0.267]
[1758899449540,0.375,3939.7,3939.0,0.45665]
[1758899449737,0.10693056,3939.6,3939.1,0.267]
[1758899449946,0.375,3939.2,3939.1,0.267]
[1758899450145,0.48193056,3939.2,3939.1,0.267]
[1758899450445,0.10693056,3939.2,3939.1,0.267]
[1758899450642,0.45661,3939.5,3939.1,0.267]
[1758899450643,0.10705323,3939.4,3939.3,0.45662]
[1758899450841,0.10705293,3939.4,3939.3,0.3472]
[1758899451141,0.10705294,3939.4,3939.3,0.3472]
[1758899451346,0.48205294,3939.4,3939.1,1.07085]
[1758899451545,0.56368294,3939.3,3939.2,0.3472]
[1758899451848,0.45667,3939.0,3938.8,3.66448]
[1758899452045,0.10705294,3938.9,3938.8,3.2078]
[1758899452245,0.10705294,3938.9,3938.8,3.822]
[1758899452544,0.10705294,3938.9,3938.8,3.2078]
[1758899452743,0.10705294,3938.9,3938.0,0.1381]
[1758899452744,0.375,3938.7,3938.0,3.2078]
[1758899453045,0.10705294,3938.6,3938.4,0.27002217]
[1758899453246,0.48247448,3938.5,3938.4,0.27002217]
[1758899453436,0.48247448,3938.5,3938.4,0.00302217]
[1758899453634,0.62617448,3938.5,3938.4,0.00302217]
[1758899454045,0.48247448,3938.5,3938.4,0.00302217]
[1758899454242,0.62617448,3938.5,3938.4,0.00302217]
[1758899454551,0.62617448,3938.5,3937.9,0.02539457]
[1758899454738,4.18328,3938.0,3937.9,0.02539457]
[1758899454934,4.29075448,3938.0,3937.9,0.02539457]
[1758899455544,4.14705448,3938.0,3937.9,0.02539457]
[1758899455744,3.69027448,3938.0,3937.9,0.02755378]
[1758899456045,0.10747448,3938.0,3937.9,0.02755378]
[1758899456449,3.69027448,3938.0,3937.9,0.02755378]
[1758899457346,3.83397448,3938.0,3937.9,0.02755378]
[1758899458248,1.14208,3937.6,3937.2,0.268]
[1758899458446,0.83186,3937.3,3937.2,0.268]
[1758899458646,0.10747448,3937.3,3937.2,1.07207]
[1758899458848,0.10747448,3937.3,3937.2,4.27987]
[1758899459044,0.10747448,3937.3,3937.2,9.27987]
[1758899459239,3.66455,3938.3,3938.1,0.45676]
[1758899459446,4.03955,3938.3,3938.2,0.268]
[1758899459753,4.55622497,3938.3,3938.2,0.268]
[1758899460345,4.55622497,3938.3,3937.7,0.3472]
[1758899460346,4.09948497,3938.3,3937.7,0.3472]
[1758899460551,0.1437,3938.5,3937.2,0.00219485]
[1758899460552,0.45682,3937.7,3937.2,0.00219485]
[1758899460747,0.375,3937.6,3937.3,0.3472]
[1758899460945,0.375,3937.6,3937.2,0.00219485]
[1758899460946,4.03959,3937.9,3937.7,0.4568]
[1758899461145,0.45675,3938.3,3937.6,0.3472]
[1758899461456,0.5173334,3938.2,3938.1,0.45676]
[1758899461646,0.4568,3937.8,3937.6,0.3472]
[1758899461847,0.375,3937.8,3937.7,0.45681]
[1758899462154,0.375,3937.8,3937.6,0.3472]
[1758899462155,0.375,3937.7,3937.6,0.45682]
[1758899462345,0.45682,3937.7,3937.6,0.45682]
[1758899462539,0.375,3938.2,3937.5,0.6152]
[1758899462741,0.51759316,3938.1,3938.0,0.80397]
[1758899462949,0.51759316,3938.1,3938.0,1.07197]
[1758899463343,3.2078,3938.3,3938.2,0.80396]
[1758899463549,3.7252668,3938.3,3938.2,0.80396]
[1758899463744,3.2078,3938.7,3938.5,0.45671]
[1758899463950,0.51741779,3938.6,3938.5,0.94201]
[1758899464149,0.51741779,3938.6,3938.5,1.21001]
[1758899464350,3.2078,3938.7,3938.6,0.80391]
[1758899464951,3.2078,3939.2,3939.0,0.45666]
[1758899465154,0.51733385,3939.1,3939.0,0.80386]
[1758899465355,0.51733385,3939.1,3939.0,0.6152]
[1758899465855,0.85643385,3939.1,3939.0,0.268]
[1758899466263,0.51733385,3939.1,3939.0,1.06666]
[1758899466448,0.51733385,3939.1,3939.0,6.20746]
[1758899466645,3.2078,3939.7,3939.1,0.342]
[1758899466854,3.2078,3939.7,3939.0,5.4088]
[1758899466855,3.2078,3939.7,3939.6,0.79859]
[1758899467148,3.72503434,3939.7,3939.6,1.06559]
[1758899467350,0.3391,3940.1,3939.8,0.45657]
[1758899467652,0.51923712,3939.9,3939.8,0.81137]
[1758899468255,0.00209101,3939.9,3939.8,5.81137]
[1758899468657,0.0253,3940.4,3940.3,0.81131]
[1758899468861,0.0253,3940.4,3940.3,6.07831]
[1758899469258,3.2078,3941.1,3941.0,0.81123]
[1758899469550,0.51660849,3941.1,3941.0,0.6218]
[1758899469755,0.51660849,3941.1,3941.0,1.21850613]
[1758899469756,0.00308026,3941.1,3941.0,1.21850613]
[1758899470448,0.00308026,3941.1,3941.0,0.76208613]
[1758899470653,3.57118026,3941.1,3941.0,0.00248613]
[1758899470845,4.0875005,3941.1,3941.0,0.00248613]
[1758899471249,4.19195842,3941.1,3941.0,0.00248613]
[1758899471656,0.10753818,3941.1,3941.0,0.35728613]
[1758899471860,0.46783818,3941.1,3941.0,0.00248613]
[1758899472153,0.10753818,3941.1,3941.0,0.35728613]
[1758899472349,0.10753818,3941.1,3941.0,0.49508613]
[1758899472750,0.10753818,3941.1,3941.0,5.49508613]
[1758899472954,0.10753818,3941.1,3941.0,8.70288613]
[1758899474366,0.10753818,3941.1,3941.0,3.96988613]
[1758899474662,0.10753818,3941.1,3941.0,3.83208613]
[1758899474959,0.46783818,3941.1,3941.0,3.21028613]
[1758899475163,0.46783818,3941.1,3941.0,3.47728613]
[1758899475358,0.46783818,3941.1,3941.0,0.26948613]
[1758899475658,3.67563818,3941.1,3941.0,0.00248613]
[1758899476451,8.67563818,3941.1,3941.0,0.00248613]
[1758899476853,0.45656,3940.0,3939.8,3.2078]
[1758899477059,0.92132792,3939.9,3939.8,0.267]
[1758899477355,0.10445792,3939.9,3939.8,0.6218]
[1758899477554,0.10445792,3939.9,3939.8,3.8296]
[1758899477957,0.10445792,3939.9,3939.8,3.83218676]
[1758899478553,0.3603,3940.8,3940.0,0.1378]
[1758899478757,0.10425204,3940.7,3940.1,0.3548]
[1758899478962,0.10425204,3940.6,3940.5,0.81128]
[1758899479665,0.10425204,3940.6,3940.5,0.3548]
[1758899480158,0.3603,3940.3,3940.2,0.267]
[1758899480362,0.46455204,3940.3,3940.2,0.267]
[1758899481279,0.3603,3940.2,3939.8,0.00258676]
[1758899481564,3.2078,3940.0,3939.9,0.6218]
[1758899481764,3.67235204,3940.0,3939.9,0.267]
[1758899482271,0.81686,3939.9,3939.8,0.00258676]
[1758899482573,0.81686,3939.9,3938.5,1.2796]
[1758899482574,0.3603,3938.9,3938.8,0.45668]
[1758899482866,0.3603,3938.9,3938.8,0.66468]
[1758899483070,3.2078,3939.0,3938.8,0.66468]
[1758899483268,0.3603,3939.3,3938.8,0.208]
[1758899483470,0.46454136,3939.2,3939.0,0.45666]
[1758899483765,0.10424136,3939.1,3939.0,0.81146]
[1758899483962,3.66442,3939.4,3939.2,0.3548]
[1758899484166,0.10424114,3939.3,3939.2,0.3548]
[1758899484362,0.10424114,3939.3,3939.2,0.6218]
[1758899485768,0.3603,3939.8,3939.5,0.3548]
[1758899485966,0.10428921,3939.7,3939.2,0.267]
[1758899486270,0.10428921,3939.6,3939.3,0.3548]
[1758899486457,3.2078,3939.9,3939.4,0.3548]
[1758899486657,0.10432135,3939.8,3939.7,0.45658]
[1758899486959,3.2078,3939.9,3939.8,0.3548]
[1758899487271,3.2078,3940.6,3940.4,0.45649]
[1758899487465,3.2078,3940.6,3940.5,0.6218]
[1758899487665,3.31216116,3940.6,3940.5,0.6218]
[1758899487871,3.31216116,3940.6,3940.5,0.267]
[1758899488168,0.3603,3940.3,3940.2,0.267]
[1758899488360,1.60597116,3940.3,3939.7,3.66438]
[1758899488557,0.1392,3940.5,3939.8,0.72357]
[1758899488558,0.10436116,3940.2,3939.8,0.72357]
[1758899488870,1.28045,3940.5,3939.8,0.72357]
[1758899488871,0.3603,3939.9,3939.8,0.267]
[1758899489063,0.46466116,3939.9,3939.8,0.72357]
[1758899489565,0.46466116,3939.9,3939.7,3.2078]
[1758899489759,0.10436116,3939.8,3939.7,3.66438]
[1758899489964,0.56100612,3940.2,3939.7,3.4748]
[1758899490159,0.10447612,3940.1,3939.7,3.4748]
[1758899490369,0.4995,3940.5,3939.8,0.3548]
[1758899490370,0.45656,3939.9,3939.8,0.3548]
[1758899490671,1.64075,3940.5,3940.3,0.3548]
[1758899490672,0.4565,3940.4,3940.3,0.3548]
[1758899490964,0.92129,3940.4,3940.3,0.267]
[1758899491571,0.46479,3940.4,3940.3,0.72351]
[1758899491769,0.10449,3940.4,3940.3,1.07831]
[1758899492767,3.66731026,3941.1,3940.3,1.07831]
[1758899492768,3.21088026,3941.1,3941.0,0.81123]
[1758899492962,3.21088026,3941.1,3941.0,1.21503]
[1758899493766,0.00308026,3941.1,3941.0,1.21503]
[1758899493961,0.45950026,3941.1,3941.0,0.3548]
[1758899494168,0.45950026,3941.1,3941.0,0.6208]
[1758899494375,0.00308026,3941.1,3941.0,1.21503]
[1758899495074,0.00308026,3941.1,3941.0,0.7586]
[1758899495272,0.00308026,3941.1,3941.0,0.3548]
[1758899495474,0.36338026,3941.1,3941.0,0.6208]
[1758899495669,0.36338026,3941.1,3941.0,0.266]
[1758899495865,0.36338026,3941.1,3940.6,0.3548]
[1758899495866,0.45647,3940.7,3940.6,0.3548]
[1758899496277,0.81677,3940.7,3940.6,0.266]
[1758899496567,0.3603,3940.6,3940.5,3.2078]
[1758899496772,0.3603,3940.6,3940.5,3.4738]
[1758899496969,0.45652,3940.3,3940.1,3.2078]
[1758899497269,0.3603,3940.2,3940.1,3.2078]
[1758899497570,0.3603,3940.2,3940.1,3.4738]
[1758899499171,0.3603,3940.2,3940.1,0.266]
[1758899499376,0.3603,3940.2,3940.1,0.72254]
[1758899499566,0.3603,3940.2,3940.1,0.6104]
[1758899499771,0.3603,3940.2,3940.1,0.266]
[1758899499969,0.45657,3939.8,3939.7,3.2078]
[1758899500179,0.82097,3939.8,3939.7,3.4738]
[1758899500772,0.45656,3940.0,3939.8,0.45657]
[1758899500970,0.45656,3940.0,3939.8,0.3444]
[1758899501175,0.0253,3940.4,3939.7,3.4738]
[1758899501480,0.45656,3939.9,3939.8,0.80097]
[1758899501881,0.45656,3939.9,3939.8,0.3444]
[1758899502176,0.45664,3939.2,3939.1,0.3444]
[1758899502474,0.45666,3939.0,3938.9,3.2078]
[1758899502675,0.3644,3939.2,3938.9,3.8182]
[1758899502880,0.3644,3939.6,3939.2,0.45664]
[1758899503080,0.45663,3939.3,3939.2,0.3444]
[1758899503270,0.82103,3939.3,3939.2,0.6104]
[1758899503870,0.82103,3939.3,3939.2,0.266]
[1758899504071,0.82103,3939.3,3938.8,0.00246612]
[1758899504072,0.82107,3938.9,3938.8,0.00246612]
[1758899504271,4.02887,3938.9,3938.8,0.00246612]
[1758899504472,9.02887,3938.9,3938.8,0.00246612]
[1758899504675,9.54680219,3938.9,3938.8,0.00246612]
[1758899504876,9.6530839,3938.9,3938.8,0.00246612]
[1758899505070,9.65294492,3938.9,3938.8,0.00246612]
[1758899506180,4.65294492,3938.9,3938.8,0.00246612]
[1758899506572,4.65271058,3938.9,3938.8,0.00246612]
[1758899506773,4.13515171,3938.9,3938.8,0.00246612]
[1758899507174,9.65251253,3938.9,3938.8,0.00246612]
[1758899508383,9.13515171,3938.9,3938.8,0.00246612]
[1758899508583,9.65234351,3938.9,3938.8,0.00246612]
[1758899508886,9.13515171,3938.9,3938.8,0.00246612]
[1758899509784,9.40115171,3938.9,3938.8,0.00246612]
[1758899510487,9.91810352,3938.9,3938.8,0.00246612]
[1758899510677,0.82117,3938.1,3938.0,3.2078]
[1758899510877,0.10628171,3938.1,3938.0,4.15068]
[1758899511477,3.2078,3939.3,3938.5,0.1417]
[1758899511671,0.45664,3939.2,3939.1,0.80105]
[1758899511877,0.45664,3939.2,3939.1,0.3444]
[1758899512682,0.3644,3940.3,3940.1,0.45652]
[1758899512887,0.3644,3941.1,3940.3,0.52551]
[1758899513191,0.3644,3941.1,3940.3,0.79151]
[1758899513486,0.3644,3940.9,3940.3,0.266]
[1758899513677,0.5123,3940.5,3940.4,3.4738]
[1758899514879,0.00207381,3940.9,3940.5,0.45649]
[1758899515074,0.00207381,3940.9,3940.8,0.45645]
[1758899515286,0.00207381,3940.9,3940.7,0.45646]
[1758899515674,0.00207381,3940.9,3940.6,0.069]
[1758899515887,0.00207381,3940.9,3940.4,3.2078]
[1758899516188,0.5123,3940.5,3940.4,3.2078]
[1758899516390,0.5123,3940.5,3940.4,3.4738]
[1758899516890,0.3644,3940.5,3940.4,3.4738]
[1758899517583,0.02737381,3940.9,3940.7,0.45646]
[1758899517786,0.39177381,3940.9,3940.8,0.266]
[1758899518384,0.39177381,3940.9,3940.8,3.4738]
[1758899520090,0.02737381,3940.9,3940.8,3.4738]
[1758899520295,3.66408,3942.3,3940.9,0.45644]
[1758899520587,0.3644,3941.9,3941.8,0.45634]
[1758899520788,0.3644,3941.9,3941.8,3.93014]
[1758899520983,0.5123,3942.0,3941.8,3.93014]
[1758899521188,3.2078,3942.7,3941.8,3.93014]
[1758899521189,0.5123,3942.5,3942.4,0.45627]
[1758899521389,0.51456018,3942.5,3942.4,0.72411018]
[1758899521583,0.00226018,3942.5,3942.4,0.72411018]
[1758899522193,0.00226018,3942.5,3942.4,0.00184018]
[1758899522487,0.00226018,3942.5,3942.4,0.26784018]
[1758899523484,5.00226018,3942.5,3942.4,0.00184018]
[1758899523996,8.21006018,3942.5,3942.4,0.00184018]
[1758899524492,3.21006018,3942.5,3942.4,0.00184018]
[1758899524993,0.00226018,3942.5,3942.4,0.00184018]
[1758899525192,0.00226018,3942.5,3942.4,0.26784018]
[1758899526190,0.00226018,3942.5,3942.4,3.47564018]
[1758899526385,0.00226018,3942.5,3942.4,8.47564018]
[1758899526786,0.00226018,3942.5,3942.4,8.20964018]
[1758899526997,0.00226018,3942.5,3942.4,3.20964018]
[1758899527187,0.00226018,3942.5,3942.4,0.00184018]
[1758899527495,5.00226018,3942.5,3941.5,3.2078]
[1758899527699,0.45636,3941.7,3941.5,3.2078]
[1758899527988,0.45645,3940.9,3940.7,3.2078]
[1758899528398,1.14094,3941.5,3940.3,3.4738]
[1758899528399,0.45648,3940.6,3940.3,3.4738]
[1758899528690,3.2078,3941.1,3940.4,0.4565]
[1758899528897,3.2078,3941.1,3940.3,3.47619939]
[1758899529094,0.45644,3941.0,3940.5,0.45648]
[1758899529397,3.2078,3941.1,3940.8,0.45645]
[1758899529600,3.2078,3941.1,3940.9,0.266]
[1758899529601,3.66422,3941.1,3940.9,0.266]
[1758899529788,3.2078,3941.1,3940.9,0.72244]
[1758899529988,3.2078,3941.5,3940.9,0.266]
[1758899530192,0.45642,3941.1,3940.9,0.266]
[1758899530794,3.2078,3941.5,3940.3,3.21019939]
[1758899530990,3.2078,3941.5,3940.4,0.7225]
[1758899531192,0.45643,3941.0,3940.5,0.45648]
[1758899531492,3.2078,3941.5,3940.8,0.45645]
[1758899531695,1.14078,3942.1,3940.9,0.266]
[1758899531696,3.2078,3941.9,3940.9,0.266]
[1758899531894,3.2078,3941.9,3941.2,0.4564]
[1758899532095,3.2078,3941.9,3941.3,0.45639]
[1758899532293,0.45636,3941.6,3941.4,0.266]
[1758899532787,3.2078,3941.9,3940.9,0.45644]
[1758899532985,0.45642,3941.1,3940.7,3.2078]
[1758899533190,3.2078,3941.0,3940.3,0.00239939]
[1758899533398,0.4565,3940.4,3940.3,0.00239939]
[1758899533599,0.45646,3940.8,3940.3,0.00239939]
[1758899533806,0.45645,3940.9,3940.3,0.00239939]
[1758899534000,0.45645,3940.9,3940.5,0.45648]
[1758899534188,0.45646,3940.8,3940.6,0.266]
[1758899534999,40.8,3941.3,3940.3,0.00239939]
[1758899535000,0.45649,3940.5,3940.3,0.00239939]
[1758899535198,0.45649,3940.5,3938.8,3.20622132]
[1758899535199,0.45657,3939.9,3939.7,3.2078]
[1758899535389,40.8,3940.5,3939.7,3.4738]
[1758899535791,4.3492,3939.9,3938.8,3.2078]
[1758899536002,0.45667,3939.0,3938.8,3.2078]
[1758899536196,0.00191152,3939.0,3938.8,3.21063762]
[1758899536594,0.00191152,3939.0,3938.9,0.266]
[1758899537797,0.00191152,3939.0,3938.9,5.266]
[1758899538605,0.00191152,3939.0,3938.8,3.66731762]
[1758899538606,0.00191152,3939.0,3938.8,3.21063762]
[1758899538791,0.00191152,3939.0,3938.9,0.266]
[1758899540104,0.45668,3938.9,3938.8,3.21063762]
[1758899540298,0.00191152,3939.0,3938.8,3.47663762]
[1758899540499,0.45858152,3939.0,3938.8,3.47663762]
[1758899540803,0.00191152,3939.0,3938.8,3.93331762]
[1758899541504,0.0253,3939.6,3938.8,3.93331762]
[1758899541505,0.0253,3939.6,3939.5,0.45661]
[1758899541699,0.0253,3939.6,3939.5,3.66441]
[1758899541901,0.45655,3940.0,3939.6,0.45659]
[1758899542101,0.45658,3939.7,3939.5,3.2078]
[1758899542600,0.45842784,3939.7,3939.6,0.266]
[1758899542803,0.45842784,3939.7,3939.5,3.2078]
[1758899543995,0.45842784,3939.7,3939.5,3.4738]
[1758899544800,5.45842784,3939.7,3939.5,3.2078]
[1758899544994,0.45842784,3939.7,3939.5,3.2078]
[1758899545800,5.0,3939.6,3939.5,3.2078]
[1758899547208,6.1415,3939.6,3939.2,0.266]
[1758899547406,0.45668,3938.9,3938.8,0.00283762]
[1758899547712,3.66448,3938.9,3938.8,0.00283762]
[1758899547900,44.46448,3938.9,3938.8,0.00283762]
[1758899548404,8.66448,3938.9,3938.8,0.00283762]
[1758899549104,49.46448,3938.9,3938.8,0.00283762]
[1758899549300,8.66448,3938.9,3938.8,0.00283762]
[1758899549606,0.45677,3938.1,3938.0,3.2078]
[1758899549808,0.45677,3938.1,3938.0,3.4528]
[1758899550003,0.45688,3937.2,3937.0,3.2078]
[1758899550401,0.45686,3937.4,3937.0,3.2078]
[1758899550707,0.45686,3937.3,3937.1,0.266]
[1758899551095,0.45685,3937.4,3937.1,0.266]
[1758899551302,3.2078,3937.9,3937.1,0.266]
[1758899551503,0.45681,3937.8,3937.4,3.66464]
[1758899551703,0.45681,3937.8,3937.5,0.266]
[1758899551905,40.8,3938.2,3937.5,0.266]
[1758899551906,0.45682,3937.7,3937.5,0.266]
[1758899552204,0.4568,3937.9,3937.5,0.266]
[1758899552404,0.45682,3937.7,3937.5,0.266]
[1758899552705,0.4568,3937.9,3937.5,0.266]
[1758899552896,40.8,3938.2,3937.5,0.266]
[1758899553099,0.09238965,3938.1,3937.5,0.266]
[1758899553405,0.45684,3937.5,3937.4,3.2078]
[1758899553608,0.45686,3937.3,3937.2,0.266]
[1758899553906,0.45685,3937.4,3937.2,0.266]
[1758899554701,0.45685,3937.4,3937.0,3.20993094]
[1758899554702,0.45688,3937.1,3937.0,3.20993094]
[1758899554906,0.45688,3937.1,3937.0,3.47593094]
[1758899555406,0.45686,3937.3,3937.0,3.47593094]
[1758899555596,3.2078,3937.9,3937.0,3.47593094]
[1758899555798,0.09238946,3937.8,3937.1,0.45688]
[1758899555999,0.09238946,3937.8,3937.0,3.47593094]
[1758899556000,0.45688,3937.2,3937.0,3.47593094]
[1758899556702,0.3765,3937.8,3937.0,3.47593094]
[1758899557004,0.45685,3937.4,3937.2,0.45687]
[1758899557195,0.3765,3937.7,3937.3,0.0416]
[1758899557396,0.09247601,3937.6,3937.4,0.266]
[1758899557596,41.1765,3938.2,3937.5,0.0416]
[1758899557802,0.4568,3937.9,3937.5,0.0416]
[1758899557999,0.45681,3937.8,3937.5,0.49844]
[1758899558196,41.1765,3938.2,3937.5,0.0416]
[1758899558401,0.09247242,3938.1,3937.9,0.45679]
[1758899558599,0.3765,3938.6,3938.0,0.3076]
[1758899558796,0.45673,3938.4,3938.2,0.0416]
[1758899559099,0.45676,3938.2,3938.1,0.266]
[1758899559301,4.34958,3938.7,3937.8,3.2078]
[1758899559302,0.83329,3937.9,3937.8,3.2078]
[1758899559500,0.3765,3937.9,3937.3,3.66466]
[1758899559709,0.3765,3937.9,3937.4,0.266]
[1758899560007,0.1488,3938.0,3937.3,3.66466]
[1758899560205,0.3765,3937.6,3937.5,0.266]
[1758899560510,1.29063,3938.5,3937.7,0.45681]
[1758899560708,0.09251485,3938.4,3937.8,0.266]
[1758899561008,0.45677,3938.1,3937.9,0.0416]
[1758899561211,0.45678,3938.0,3937.8,0.3076]
[1758899561406,0.45679,3937.9,3937.8,0.3076]
[1758899561602,0.45679,3937.9,3937.8,0.266]
[1758899561909,0.3765,3937.9,3937.8,0.7228]
[1758899562112,0.83329,3937.9,3937.8,0.266]
[1758899562409,0.83329,3937.9,3937.8,0.7228]
[1758899562410,0.09261627,3937.9,3937.8,0.7228]
[1758899562611,0.1488,3938.5,3938.2,0.45676]
[1758899562808,0.09262299,3938.4,3938.3,0.3076]
[1758899563109,0.54935299,3938.4,3938.3,0.266]
[1758899563305,0.92585299,3938.4,3938.3,0.266]
[1758899563905,0.92585299,3938.4,3938.3,0.72275]
[1758899564211,0.92585299,3938.4,3938.3,0.266]
[1758899564909,0.60559,3938.0,3937.7,3.2078]
[1758899565113,0.60559,3938.0,3937.8,0.266]
[1758899565114,0.3765,3937.9,3937.8,0.266]
[1758899565413,0.46925144,3937.9,3937.8,0.266]
[1758899565606,0.3765,3937.8,3937.7,3.2078]
[1758899565913,0.3765,3937.6,3937.5,0.266]
[1758899566108,0.46926365,3937.6,3937.5,0.72284]
[1758899566299,0.09276365,3937.6,3937.5,0.72284]
[1758899566503,0.83333,3937.6,3937.5,0.266]
[1758899566706,0.46926365,3937.6,3937.5,0.72284]
[1758899566901,0.09276365,3937.6,3937.5,0.72284]
[1758899567106,0.54959365,3937.6,3937.5,0.266]
[1758899567315,0.46926365,3937.6,3937.5,0.72284]
[1758899567503,0.09276365,3937.6,3937.5,0.76444]
[1758899567811,0.3765,3938.4,3937.9,0.45679]
[1758899568013,0.83327,3938.1,3938.0,0.266]
[1758899568209,0.83327,3938.1,3937.8,3.2078]
[1758899568210,0.83329,3937.9,3937.8,3.2078]
[1758899568410,0.92606055,3937.9,3937.8,3.4738]
[1758899569305,0.45684,3937.5,3937.4,3.2078]
[1758899569509,0.45684,3937.5,3937.4,3.4738]
[1758899569510,1.0749539,3937.5,3937.4,3.4738]
[1758899569708,0.98214,3937.5,3937.4,3.93065]
[1758899569913,0.61811423,3937.5,3937.4,3.93065]
[1758899570610,0.09281423,3937.5,3937.4,3.93065]
[1758899570914,0.45676,3938.2,3938.1,0.49837]
[1758899571116,0.09282625,3938.2,3938.1,0.76437]
[1758899571321,0.54958625,3938.2,3938.1,0.76437]
[1758899571514,0.92608625,3938.2,3938.1,0.266]
[1758899571723,0.92608625,3938.2,3938.1,0.72277]
[1758899572008,0.92608625,3938.2,3938.1,0.266]
[1758899572216,0.46932625,3938.2,3938.1,0.72277]
[1758899572516,0.54958625,3938.2,3938.1,0.266]
[1758899572715,0.92608625,3938.2,3938.1,0.266]
[1758899572913,0.46932625,3938.2,3938.1,0.266]
[1758899573110,0.92608625,3938.2,3938.1,0.266]
[1758899573615,1.44282613,3938.2,3938.1,0.266]
[1758899573818,0.98208,3938.0,3937.9,0.45679]
[1758899574016,1.07490625,3938.0,3937.9,0.266]
[1758899574716,0.46932625,3938.0,3937.9,0.72279]
[1758899574915,0.09282625,3938.0,3937.9,0.76439]
[1758899575418,0.61812625,3938.0,3937.9,0.266]
[1758899575609,1.07490625,3938.0,3937.9,0.266]
[1758899576212,0.83329,3937.9,3937.8,3.2078]
[1758899576409,1.44335797,3937.9,3937.8,3.4738]
[1758899577516,1.44335797,3937.9,3937.8,0.266]
[1758899577717,0.98656797,3937.9,3937.8,0.7228]
[1758899578014,1.44335797,3937.9,3937.8,0.266]
[1758899578719,0.09282625,3937.9,3937.8,3.9722]
[1758899579512,0.0253,3938.4,3938.3,0.45675]
[1758899579716,0.0253,3938.4,3938.3,3.97205]
[1758899579918,0.3765,3938.9,3938.8,0.45669]
[1758899580114,0.51783471,3938.9,3938.8,0.72269]
[1758899580320,0.89433471,3938.9,3938.8,3.93049]
[1758899580616,0.45664,3939.2,3939.1,0.45665]
[1758899580824,0.3765,3939.4,3939.3,0.45663]
[1758899581018,0.5177699,3939.4,3939.3,0.45663]
[1758899581320,0.3765,3939.4,3939.3,0.45663]
[1758899581715,0.37834784,3939.7,3939.6,0.45659]
[1758899581911,0.00184784,3939.7,3939.6,0.72259]
[1758899582118,0.51924095,3939.7,3939.6,0.76409]
[1758899582316,0.00184784,3939.7,3939.6,8.97189]
[1758899582515,0.36294784,3939.7,3939.6,3.4738]
[1758899582714,0.36294784,3939.7,3939.6,3.2078]
[1758899583132,0.36294784,3939.7,3939.6,3.4738]
[1758899583515,0.36294784,3939.7,3939.6,3.2078]
[1758899583725,0.81773,3939.3,3939.2,3.2078]
[1758899583918,0.1439,3939.5,3938.7,3.66449]
[1758899584224,0.45663,3939.3,3939.0,0.45665]
[1758899584414,0.3611,3939.2,3939.1,0.266]
[1758899584611,0.81774,3939.2,3939.1,0.266]
[1758899585319,0.81784,3938.4,3938.3,3.2078]
[1758899585520,0.3611,3938.4,3938.3,3.4738]
[1758899585912,0.3475,3938.4,3938.3,3.2078]
[1758899586119,0.45669,3938.8,3938.3,3.4738]
[1758899586328,0.3475,3938.9,3938.8,0.45668]
[1758899586517,0.25,3939.2,3939.1,0.45665]
[1758899586822,0.25,3939.2,3939.1,3.95885]
[1758899587519,0.5975,3939.2,3939.1,3.4738]
[1758899588823,0.5975,3939.2,3939.1,3.2078]
[1758899589024,0.5975,3939.2,3939.1,3.4738]
[1758899590114,0.3475,3939.1,3938.8,0.45669]
[1758899590320,0.94337,3939.0,3938.9,0.266]
[1758899590726,0.4867,3939.0,3938.9,0.266]
[1758899590927,0.25,3939.2,3939.0,0.45666]
[1758899591133,0.25,3939.2,3939.1,3.4738]
[1758899591324,0.5975,3939.2,3939.1,3.4738]
[1758899591525,0.69572644,3939.2,3939.1,3.4738]
[1758899592022,0.34822644,3939.2,3939.1,3.93045]
[1758899592425,0.34822644,3939.2,3939.1,3.95885]
[1758899592627,0.34822644,3939.2,3939.1,3.93045]
[1758899592827,0.69572644,3939.2,3939.1,3.4738]
[1758899593018,0.45669,3938.8,3938.7,3.66449]
[1758899593224,0.90241154,3938.8,3938.7,3.9305]
[1758899593725,0.44572154,3938.8,3938.7,3.9305]
[1758899593922,0.09822154,3938.8,3938.7,3.9305]
[1758899594123,0.09822154,3938.8,3938.7,3.9589]
[1758899594326,0.09822154,3938.8,3938.7,3.5022]
[1758899594637,0.90241154,3938.8,3938.7,3.4738]
[1758899594829,0.90240612,3938.8,3938.7,3.4738]
[1758899595032,0.90240612,3938.8,3938.7,3.9305]
[1758899595225,0.90240612,3938.8,3938.7,3.4738]
[1758899595529,0.90240612,3938.8,3937.8,40.96065781]
[1758899595530,0.3475,3938.4,3938.3,3.2078]
[1758899595729,0.45669,3938.8,3938.6,0.4567]
[1758899595932,0.8042,3938.8,3938.7,0.266]
[1758899596135,0.90241891,3938.8,3938.7,0.266]
[1758899597634,0.44571891,3938.8,3938.7,3.9305]
[1758899598034,0.90240891,3938.8,3938.7,3.9305]
[1758899598232,0.09821891,3938.8,3938.7,3.9589]
[1758899598535,0.44571891,3938.8,3938.7,3.9305]
[1758899598930,0.09821891,3938.8,3938.7,8.9589]
[1758899599126,0.70665,3939.2,3939.0,0.45665]
[1758899599331,1.05415,3939.2,3939.1,3.93045]
[1758899599736,0.5975,3939.2,3939.1,3.93045]
[1758899600035,1.05414,3939.2,3939.1,3.93045]
[1758899600232,0.34825921,3939.2,3939.1,3.95885]
[1758899600625,1.05414,3939.2,3939.1,3.93045]
[1758899601344,0.5975,3939.2,3939.1,3.93045]
[1758899601632,0.25,3939.2,3939.1,3.95885]
[1758899603835,0.25,3939.2,3939.1,8.95885]
[1758899604639,0.5975,3939.2,3939.1,3.93045]
[1758899605427,0.69580824,3939.2,3939.1,3.93045]
[1758899605735,0.34830824,3939.2,3939.1,3.93045]
[1758899606541,0.69580824,3939.2,3939.1,3.93045]